[Event "II Duchamp Open 2018-U2200"]
[Site "Rio de Janeiro"]
[Date "2018.11.16"]
[Round "1"]
[White "Rios Fo., Hilton Carlos Da Si"]
[Black "Dos Santos, Rodrigo Mello"]
[Result "1-0"]
[ECO "B14"]
[WhiteElo "2138"]
[BlackElo "1965"]
[Annotator "RC"]
[PlyCount "63"]
[EventDate "2018.11.14"]
[EventType "swiss"]
[EventCountry "BRA"]
[SourceTitle "playchess.com"]
[Source "ChessBase"]
[SourceQuality "1"]
[TimeControl "5400+30"]

1. d4 {[%emt 0:29:33]} Nf6 {[%emt 0:29:41]} 2. c4 {[%emt 0:00:04]} c5 {[%emt 0:00:12]} 3. e3 {[%emt 0:00:21]} cxd4 4. exd4 d5 {[%emt 0:01:15]} 5. Nc3 {[%emt 0:00:05]} g6 {[%emt 0:01:14]} 6. Bg5 {[%emt 0:01:24]} dxc4 {[%emt 0:05:37]} 7. Bxc4 {[%emt 0:00:06]} Bg7 {[%emt 0:00:08]} 8. Nf3 {[%emt 0:00:09]} O-O {[%emt 0:00:30]} 9. O-O {[%emt 0:04:39]} Nbd7 {[%emt 0:12:40]} 10. Re1 {[%emt 0:02:52]} Nb6 {[%emt 0:01:21]} 11. Bb3 {[%emt 0:00:03]} Bg4 {[%emt 0:03:24]} 12. h3 {[%emt 0:00:10]} Bf5 {[%emt 0:01:50]} 13. Qe2 {[%emt 0:04:17]} h6 {[%emt 0:02:10]} 14. Bh4 {[%emt 0:01:05]} g5 {[%emt 0:00:36]} 15. Bg3 {[%emt 0:00:04]} e6 {[%emt 0:00:58]} 16. Rad1 {[%emt 0:04:08]} Nbd5 {[%emt 0:05:32]} 17. Ne5 {[%emt 0:02:08]} Rc8 18. Qf3 {[%emt 0:01:10]} Re8 {[%emt 0:08:10]} 19. Nxd5 {[%emt 0:16:36]} Nxd5 {[%emt 0:00:23]} 20. Nc4 Bf8 {[%emt 0:03:25]} 21. a3 {[%emt 0:06:55]} a6 22. Be5 {[%emt 0:07:48]} Bg6 {[%emt 0:07:02]} 23. Ne3 {[%emt 0:00:41]} Nxe3 {[%emt 0:01:14]} 24. Rxe3 {[%emt 0:00:04]} b5 {[%emt 0:02:44]} 25. d5 {[%emt 0:00:25]} exd5 {[%emt 0:00:44]} 26. Rxd5 {[%emt 0:02:03]} Qb6 {[%emt 0:02:30]} 27. Rd7 {[%emt 0:01:57]} Be7 {[%emt 0:01:58]} 28. Bd4 {[%emt 0:01:09]} Rc1+ {[%emt 0:03:58]} 29. Kh2 {[%emt 0:00:54]} Bd6+ {[%emt 0:01:07]} 30. g3 {[%emt 0:01:04]} Rxe3 {[%emt 0:00:55]} 31. Bxe3 {[%emt 0:01:29]} Qc6 {[%emt 0:01:41]} 32. Bxf7+ {[%emt 0:02:35] Rc3} 1-0

[Event "II Duchamp Open 2018-U2200"]
[Site "Rio de Janeiro"]
[Date "2018.11.16"]
[Round "1"]
[White "Dos Santos, Vitor Eduardo Mello"]
[Black "Morais, Wagner Soares De"]
[Result "1-0"]
[ECO "B51"]
[WhiteElo "2054"]
[BlackElo "1826"]
[Annotator "NA RC"]
[PlyCount "89"]
[EventDate "2018.11.14"]
[EventType "swiss"]
[EventCountry "BRA"]
[SourceTitle "playchess.com"]
[Source "ChessBase"]
[SourceQuality "1"]
[TimeControl "5400+30"]

1. e4 {[%emt 0:29:40]} c5 {[%emt 0:29:57]} 2. Nf3 d6 {[%emt 0:00:30]} 3. Bb5+ {[%emt 0:00:19]} Nd7 {[%emt 0:00:57]} 4. d4 {[%emt 0:00:21]} cxd4 {[%emt 0:01:19]} 5. Qxd4 {[%emt 0:00:08]} e5 {[%emt 0:07:36]} 6. Qd3 {[%emt 0:00:34]} h6 {[%emt 0:02:03] B51: Sicilian: Moscow Variation (3 Bb5+) without 3...Bd7} (6... a6 7. Bxd7+ Bxd7 8. c4 Rc8 9. a4 b5 10. axb5 axb5 11. b3 bxc4 12. bxc4 Be7 13. O-O Be6 14. Ra4 {½-½ (14) Gharamian,T (2614)-Solodovnichenko,Y (2531) Brest 2018}) 7. O-O {[%emt 0:00:53]} Ngf6 {[%emt 0:00:20]} 8. c4 {[%emt 0:01:00]} a6 {[%emt 0:00:38]} 9. Bxd7+ {[%emt 0:00:20]} Bxd7 {[%emt 0:00:36] LiveBook: 60 Games} 10. Nc3 {[%emt 0:02:20]} Be6 {[%emt 0:02:48]} 11. Ne1 $146 {[%emt 0:27:09]} ({Predecessor:} 11. b3 Be7 12. Nh4 O-O 13. Nf5 Bxf5 14. exf5 b5 15. cxb5 axb5 16. Nxb5 {0-1 (43) Brankovic,D (2358)-Stankovic,M (2357) Vrnjacka Banja 2009}) 11... Qc7 {[%emt 0:01:01]} 12. b3 {[%emt 0:00:16]} Be7 {[%emt 0:00:27]} 13. Nc2 {[%emt 0:05:23]} a5 {[%emt 0:07:41]} 14. Ne3 {[%emt 0:10:31]} Qc6 {[%emt 0:04:47]} 15. Kh1 {[%emt 0:07:56]} O-O $16 {[%emt 0:00:22]} 16. f4 {[%emt 0:00:25]} exf4 {[%emt 0:01:36]} 17. Ned5 {[%emt 0:02:41]} Bxd5 {[%emt 0:01:15]} 18. Nxd5 {[%emt 0:01:57]} Nxd5 {[%emt 0:00:42]} 19. exd5 {[%emt 0:00:07]} Qd7 {[%emt 0:02:47]} 20. Bxf4 {[%emt 0:01:05]} Rfc8 {[%emt 0:06:36]} 21. Qg3 {[%emt 0:01:11]} Kf8 {[%emt 0:05:14]} 22. Rae1 {[%emt 0:02:28]} Rd8 {[%emt 0:01:44]} 23. Re2 {[%emt 0:03:51]} Ra6 {[%emt 0:01:53]} 24. Rfe1 {[%emt 0:01:28]} Bf6 {[%emt 0:04:38]} 25. Qf3 {[%emt 0:00:17]} g5 {[%emt 0:09:07]} 26. Bd2 {[%emt 0:00:07]} Kg7 {[%emt 0:00:27]} 27. Bc3 {[%emt 0:00:21]} Be5 {[%emt 0:02:04]} 28. Bxe5+ {[%emt 0:00:05]} dxe5 {[%emt 0:00:18]} 29. Rxe5 {[%emt 0:00:05]} Rf6 {[%emt 0:00:19]} 30. Qc3 {[%emt 0:00:11]} b6 {[%emt 0:01:00]} 31. h3 {[%emt 0:01:45]} Qd6 {[%emt 0:00:10]} 32. R5e3 {[%emt 0:03:03]} Kg8 {[%emt 0:01:28]} 33. Rf3 {[%emt 0:00:56]} Rf4 {[%emt 0:00:39]} 34. Qe3 {[%emt 0:00:46]} Rxf3 {[%emt 0:01:09]} 35. Qxf3 {[%emt 0:00:08]} Rc8 {[%emt 0:01:10]} 36. Qe4 {[%emt 0:01:03]} Rb8 {[%emt 0:00:46]} 37. a4 {[%emt 0:00:29]} Rf8 {[%emt 0:00:19]} 38. Re2 {[%emt 0:00:19]} Qg3 {[%emt 0:00:16]} 39. Re3 {[%emt 0:00:10]} Qd6 {[%emt 0:00:13]} 40. Qe5 {[%emt 0:00:31]} Qa3 {[%emt 0:00:50]} 41. Kh2 {[%emt 0:00:41]} Qb4 {[%emt 0:00:21]} 42. d6 {[%emt 0:01:53]} Rd8 {[%emt 0:00:52]} 43. d7 {[%emt 0:00:23]} Kh7 {[%emt 0:00:42]} 44. Qf6 {[%emt 0:00:53]} Rxd7 {[%emt 0:00:19]} 45. Qf5+ 1-0

[Event "II Duchamp Open 2018-U2200"]
[Site "Rio de Janeiro"]
[Date "2018.11.17"]
[Round "2"]
[White "Lebredo Zaragoitia, Gerardo"]
[Black "Pimentel, Rafael Favarin G."]
[Result "1-0"]
[ECO "E61"]
[WhiteElo "2139"]
[BlackElo "1886"]
[Annotator "NA"]
[PlyCount "43"]
[EventDate "2018.11.14"]
[EventType "swiss"]
[EventCountry "BRA"]
[SourceTitle "playchess.com"]
[Source "ChessBase"]
[SourceQuality "1"]
[TimeControl "5400+30"]

1. d4 {[%emt 0:29:46]} Nf6 {[%emt 0:29:35]} 2. c4 {[%emt 0:00:21]} g6 {[%emt 0:00:03]} 3. Nc3 {[%emt 0:00:19]} Bg7 {[%emt 0:00:07]} 4. Nf3 {[%emt 0:00:19]} O-O {[%emt 0:00:10]} 5. Bg5 {[%emt 0:00:20]} d6 {[%emt 0:00:06]} 6. e3 {[%emt 0:00:21]} h6 {[%emt 0:00:04]} 7. Bh4 {[%emt 0:00:20]} c5 {[%emt 0:00:08]} 8. d5 {[%emt 0:02:34]} Qa5 {[%emt 0:02:11]} 9. Nd2 {[%emt 0:04:24]} g5 {[%emt 0:02:00]} 10. Bg3 {[%emt 0:00:20]} Bf5 {[%emt 0:00:17]} 11. h4 {[%emt 0:15:29]} Ne4 {[%emt 0:06:14]} 12. Ndxe4 {[%emt 0:05:08]} Bxe4 {[%emt 0:00:09]} 13. Qd2 {[%emt 0:02:38]} Bg6 {[%emt 0:03:23]} 14. hxg5 {[%emt 0:01:19]} hxg5 {[%emt 0:00:02]} 15. Bd3 {[%emt 0:04:31]} Nd7 {[%emt 0:03:29]} 16. Bxg6 {[%emt 0:05:41]} fxg6 {[%emt 0:00:04]} 17. Ne4 {[%emt 0:01:02]} Qxd2+ {[%emt 0:01:36]} 18. Kxd2 {[%emt 0:00:12]} Ne5 {[%emt 0:01:05]} 19. Bxe5 {[%emt 0:05:42]} Bxe5 {[%emt 0:00:21]} 20. Rh6 {[%emt 0:02:07]} Bxb2 {[%emt 0:14:09]} 21. Rah1 {[%emt 0:04:22]} Bf6 {[%emt 0:13:08]} 22. Nxf6+ {[%emt 0:01:17]} 1-0

[Event "II Duchamp Open 2018-U2200"]
[Site "Rio de Janeiro"]
[Date "2018.11.17"]
[Round "2"]
[White "Lopes Fo, Jorge Antonio Ferre"]
[Black "Peixoto, Rudson Marinho"]
[Result "1-0"]
[ECO "E06"]
[WhiteElo "2126"]
[BlackElo "2007"]
[Annotator "NA"]
[PlyCount "57"]
[EventDate "2018.11.14"]
[EventType "swiss"]
[EventCountry "BRA"]
[SourceTitle "playchess.com"]
[Source "ChessBase"]
[SourceQuality "1"]
[TimeControl "5400+30"]

1. d4 {[%emt 0:29:33]} Nf6 {[%emt 0:29:41]} 2. c4 {[%emt 0:00:07]} e6 {[%emt 0:00:09]} 3. g3 {[%emt 0:00:10]} d5 {[%emt 0:00:21]} 4. Bg2 {[%emt 0:00:06]} Be7 {[%emt 0:00:14]} 5. Nf3 {[%emt 0:00:07]} c5 {[%emt 0:00:12]} 6. cxd5 {[%emt 0:00:09]} Nxd5 {[%emt 0:00:27]} 7. O-O {[%emt 0:00:29]} O-O {[%emt 0:00:27]} 8. dxc5 {[%emt 0:00:26]} Bxc5 {[%emt 0:00:18]} 9. a3 {[%emt 0:00:04]} Nc6 {[%emt 0:00:15]} 10. Qc2 {[%emt 0:01:03]} Qe7 {[%emt 0:02:29]} 11. e4 {[%emt 0:07:51]} Nf6 {[%emt 0:00:32]} 12. e5 {[%emt 0:04:58]} Nd7 {[%emt 0:02:08]} 13. Qe4 {[%emt 0:11:33]} f6 {[%emt 0:04:36]} 14. exf6 {[%emt 0:02:05]} Nxf6 {[%emt 0:00:10]} 15. Qc4 {[%emt 0:06:06]} Kh8 {[%emt 0:00:16]} 16. Nc3 {[%emt 0:00:27]} e5 {[%emt 0:00:27]} 17. Bg5 {[%emt 0:01:13]} Be6 {[%emt 0:00:14]} 18. Qh4 {[%emt 0:00:11]} h6 {[%emt 0:02:17]} 19. Ne4 {[%emt 0:00:51]} Kg8 {[%emt 0:03:45]} 20. Bxf6 {[%emt 0:01:10]} gxf6 {[%emt 0:00:20]} 21. Nxc5 {[%emt 0:00:10]} Qxc5 {[%emt 0:00:12]} 22. Qxh6 {[%emt 0:00:06]} Rf7 {[%emt 0:08:41]} 23. Qg6+ {[%emt 0:04:27]} Kf8 {[%emt 0:00:14]} 24. Ng5 fxg5 {[%emt 0:00:36]} 25. Qxe6 {[%emt 0:02:37]} Nd4 {[%emt 0:01:46]} 26. Qh6+ {[%emt 0:00:20]} Rg7 {[%emt 0:00:49]} 27. Rae1 {[%emt 0:02:47]} Kf7 {[%emt 0:01:54]} 28. b4 {[%emt 0:00:32]} Qe7 {[%emt 0:01:52]} 29. Bd5+ {[%emt 0:00:20]} 1-0

[Event "II Duchamp Open 2018-U2200"]
[Site "Rio de Janeiro"]
[Date "2018.11.17"]
[Round "2"]
[White "Dos Santos, Vitor Eduardo Mello"]
[Black "Rocha, Vitor Firmo De Souz"]
[Result "1/2-1/2"]
[ECO "A00"]
[WhiteElo "2054"]
[BlackElo "2174"]
[Annotator "NA"]
[PlyCount "60"]
[EventDate "2018.11.14"]
[EventType "swiss"]
[EventCountry "BRA"]
[SourceTitle "playchess.com"]
[Source "ChessBase"]
[SourceQuality "1"]
[TimeControl "5400+30"]

1. a3 {[%emt 0:32:15]} d5 {[%emt 0:30:28]} 2. Nf3 {[%emt 0:00:28]} Nf6 {[%emt 0:00:29]} 3. d4 {[%emt 0:01:10]} e6 {[%emt 0:01:01]} 4. e3 {[%emt 0:04:41]} Be7 {[%emt 0:00:10]} 5. c4 {[%emt 0:01:33]} O-O {[%emt 0:00:21]} 6. Nc3 {[%emt 0:00:27]} Nbd7 {[%emt 0:00:47]} 7. Be2 {[%emt 0:08:31]} c6 {[%emt 0:02:32]} 8. O-O {[%emt 0:00:27]} Ne4 {[%emt 0:00:19]} 9. Nxe4 {[%emt 0:02:14]} dxe4 {[%emt 0:00:05]} 10. Nd2 {[%emt 0:00:09]} f5 {[%emt 0:00:17]} 11. b4 {[%emt 0:13:55]} e5 {[%emt 0:00:25]} 12. Bb2 {[%emt 0:01:01]} exd4 {[%emt 0:01:36]} 13. Bxd4 {[%emt 0:00:17]} Bf6 {[%emt 0:00:56]} 14. Nb3 {[%emt 0:00:56]} Qc7 {[%emt 0:03:07]} 15. Qc2 {[%emt 0:01:37]} Ne5 {[%emt 0:01:56]} 16. Rac1 {[%emt 0:03:31]} b6 {[%emt 0:05:36]} 17. Rfd1 {[%emt 0:00:18]} Be6 {[%emt 0:00:24]} 18. Rd2 {[%emt 0:10:21]} Rae8 {[%emt 0:02:07]} 19. Qc3 {[%emt 0:03:57]} g5 {[%emt 0:06:09]} 20. Qc2 {[%emt 0:03:54]} g4 {[%emt 0:00:36]} 21. Bxe5 {[%emt 0:01:32]} Bxe5 {[%emt 0:00:13]} 22. g3 {[%emt 0:00:03]} c5 {[%emt 0:02:27]} 23. Rdd1 {[%emt 0:04:03]} h5 {[%emt 0:00:11]} 24. Nd2 {[%emt 0:00:32]} Rf6 {[%emt 0:02:30]} 25. Nb1 {[%emt 0:02:28]} h4 {[%emt 0:00:54]} 26. Kg2 {[%emt 0:00:19]} Rh6 {[%emt 0:01:04]} 27. Rh1 {[%emt 0:02:12]} h3+ {[%emt 0:00:04]} 28. Kf1 {[%emt 0:00:19]} Bf7 {[%emt 0:00:20]} 29. Nc3 {[%emt 0:00:35]} cxb4 {[%emt 0:01:14]} 30. axb4 {[%emt 0:00:29]} Bxc4 {[%emt 0:00:27]} 1/2-1/2

[Event "II Duchamp Open 2018-U2200"]
[Site "Rio de Janeiro"]
[Date "2018.11.17"]
[Round "2"]
[White "Nascimento, Pedro Henrique Alve"]
[Black "Morais, Wagner Soares De"]
[Result "1/2-1/2"]
[ECO "A46"]
[WhiteElo "2007"]
[BlackElo "1826"]
[Annotator "NA"]
[PlyCount "107"]
[EventDate "2018.11.14"]
[EventType "swiss"]
[EventCountry "BRA"]
[SourceTitle "playchess.com"]
[Source "ChessBase"]
[SourceQuality "1"]
[TimeControl "5400+30"]

1. d4 {[%emt 0:29:34]} Nf6 {[%emt 0:29:55]} 2. Nf3 {[%emt 0:01:16]} e6 {[%emt 0:13:43]} 3. Bg5 {[%emt 0:00:17]} h6 {[%emt 0:02:10]} 4. Bh4 {[%emt 0:00:25]} g5 {[%emt 0:00:12]} 5. Bg3 {[%emt 0:00:15]} Nh5 {[%emt 0:00:24]} 6. e3 {[%emt 0:01:33]} Nxg3 {[%emt 0:00:11]} 7. hxg3 {[%emt 0:00:10]} Bg7 {[%emt 0:00:22]} 8. Bd3 {[%emt 0:01:35]} b6 {[%emt 0:02:20]} 9. Qe2 {[%emt 0:05:28]} Bb7 {[%emt 0:00:46]} 10. Nbd2 {[%emt 0:00:51]} Qe7 {[%emt 0:01:35]} 11. c3 {[%emt 0:02:43]} Nc6 {[%emt 0:07:08]} 12. e4 {[%emt 0:01:46]} O-O-O {[%emt 0:07:52]} 13. Ba6 {[%emt 0:01:03]} d5 {[%emt 0:01:12]} 14. Bxb7+ {[%emt 0:01:07]} Kxb7 {[%emt 0:02:24]} 15. O-O {[%emt 0:04:51]} f5 {[%emt 0:02:39]} 16. e5 {[%emt 0:01:33]} h5 {[%emt 0:00:30]} 17. a4 {[%emt 0:00:24]} a6 {[%emt 0:00:16]} 18. b4 {[%emt 0:00:35]} Nb8 {[%emt 0:00:29]} 19. c4 {[%emt 0:02:02]} h4 {[%emt 0:01:33]} 20. gxh4 {[%emt 0:02:54]} g4 {[%emt 0:01:21]} 21. Ng5 {[%emt 0:04:49]} Rxh4 {[%emt 0:00:15]} 22. g3 {[%emt 0:01:44]} Rh5 {[%emt 0:01:22]} 23. f4 {[%emt 0:00:48]} gxf3 {[%emt 0:00:35]} 24. Ngxf3 {[%emt 0:00:25]} Rdh8 {[%emt 0:00:29]} 25. Qg2 {[%emt 0:02:48]} Bh6 {[%emt 0:00:28]} 26. Rae1 {[%emt 0:00:46]} c6 {[%emt 0:01:50]} 27. b5 {[%emt 0:00:32]} Qa3 {[%emt 0:02:42]} 28. bxc6+ {[%emt 0:00:37]} Nxc6 {[%emt 0:00:08]} 29. Qf2 {[%emt 0:03:39]} Nb4 {[%emt 0:10:58]} 30. Nb1 {[%emt 0:03:29]} Qd3 {[%emt 0:04:44]} 31. Qe2 {[%emt 0:07:18]} Qb3 {[%emt 0:02:23]} 32. Nbd2 {[%emt 0:01:39]} Bxd2 {[%emt 0:00:14]} 33. Qxd2 {[%emt 0:00:24]} Qxf3 {[%emt 0:00:53]} 34. Rxf3 {[%emt 0:00:30]} Rh1+ {[%emt 0:00:09]} 35. Kf2 {[%emt 0:00:47]} R8h2+ {[%emt 0:01:23]} 36. Ke3 {[%emt 0:00:21]} Rxd2 {[%emt 0:00:09]} 37. Rxh1 {[%emt 0:01:08]} Rd3+ {[%emt 0:00:25]} 38. Ke2 {[%emt 0:00:22]} Rxf3 {[%emt 0:00:11]} 39. Kxf3 {[%emt 0:00:09]} dxc4 {[%emt 0:00:09]} 40. Rh7+ {[%emt 0:00:54]} Kc6 {[%emt 0:00:16]} 41. Re7 {[%emt 0:01:26]} c3 {[%emt 0:01:56]} 42. Rxe6+ {[%emt 0:04:42]} Kd5 {[%emt 0:00:09]} 43. Rd6+ {[%emt 0:02:13]} Kc4 {[%emt 0:00:11]} 44. Ke2 {[%emt 0:00:33]} c2 {[%emt 0:01:07]} 45. Kd2 {[%emt 0:00:19]} b5 {[%emt 0:00:21]} 46. Rd8 {[%emt 0:03:05]} bxa4 {[%emt 0:00:29]} 47. e6 {[%emt 0:00:33]} Kb3 {[%emt 0:00:51]} 48. Rc8 {[%emt 0:00:51]} a3 {[%emt 0:00:08]} 49. e7 {[%emt 0:01:02]} a2 {[%emt 0:00:14]} 50. e8=Q {[%emt 0:01:20]} a1=Q {[%emt 0:00:14]} 51. Qe3+ {[%emt 0:01:41]} Ka4 {[%emt 0:01:09]} 52. Qe8+ {[%emt 0:00:53]} Kb3 {[%emt 0:00:14]} 53. Qe3+ {[%emt 0:00:38]} Ka4 {[%emt 0:00:07]} 54. Qe8+ {[%emt 0:01:25]} 1/2-1/2

[Event "II Duchamp Open 2018-U2200"]
[Site "Rio de Janeiro"]
[Date "2018.11.17"]
[Round "2"]
[White "Dos Santos, Rodrigo Mello"]
[Black "Sampaio, Andre Luiz"]
[Result "1-0"]
[ECO "B07"]
[WhiteElo "1965"]
[BlackElo "1700"]
[Annotator "NA"]
[PlyCount "119"]
[EventDate "2018.11.14"]
[EventType "swiss"]
[EventCountry "BRA"]
[SourceTitle "playchess.com"]
[Source "ChessBase"]
[SourceQuality "1"]
[TimeControl "5400+30"]

1. e4 {[%emt 0:31:50]} d6 {[%emt 0:29:56]} 2. d4 {[%emt 0:00:03]} Nf6 {[%emt 0:00:17]} 3. Nc3 {[%emt 0:00:05]} g6 {[%emt 0:00:09]} 4. Be3 {[%emt 0:00:13]} a6 {[%emt 0:01:21]} 5. Qd2 {[%emt 0:01:31]} Ng4 {[%emt 0:02:28]} 6. Bg5 {[%emt 0:00:15]} h6 {[%emt 0:01:24]} 7. Bh4 {[%emt 0:00:38]} Bg7 {[%emt 0:00:57]} 8. f3 {[%emt 0:01:15]} Nf6 {[%emt 0:00:17]} 9. Nge2 {[%emt 0:03:08]} c6 {[%emt 0:01:35]} 10. Bf2 {[%emt 0:03:32]} Nbd7 {[%emt 0:03:18]} 11. g4 {[%emt 0:02:17]} b5 {[%emt 0:03:14]} 12. h4 {[%emt 0:02:22]} Nb6 {[%emt 0:02:20]} 13. Ng3 {[%emt 0:04:35]} Qc7 {[%emt 0:04:27]} 14. Be2 {[%emt 0:03:43]} e5 {[%emt 0:05:10]} 15. dxe5 {[%emt 0:05:32]} dxe5 {[%emt 0:00:26]} 16. Bc5 {[%emt 0:06:10]} Nbd7 {[%emt 0:13:47]} 17. Be3 {[%emt 0:05:06]} Bb7 {[%emt 0:02:11]} 18. h5 {[%emt 0:07:38]} g5 {[%emt 0:03:00]} 19. Nf5 {[%emt 0:00:33]} Bf8 {[%emt 0:00:25]} 20. O-O-O {[%emt 0:01:36]} O-O-O {[%emt 0:03:46]} 21. Nd6+ {[%emt 0:01:01]} Bxd6 {[%emt 0:00:14]} 22. Qxd6 {[%emt 0:00:04]} Qxd6 {[%emt 0:04:20]} 23. Rxd6 {[%emt 0:00:05]} Ne8 {[%emt 0:00:37]} 24. Rd2 {[%emt 0:01:33]} Nc7 {[%emt 0:01:32]} 25. Rhd1 {[%emt 0:01:51]} Ne6 {[%emt 0:00:31]} 26. Bf1 {[%emt 0:01:36]} Kc7 {[%emt 0:00:27]} 27. Ne2 {[%emt 0:00:51]} Nb6 {[%emt 0:00:53]} 28. Ng3 {[%emt 0:01:11]} Rxd2 {[%emt 0:01:10]} 29. Rxd2 {[%emt 0:00:05]} c5 {[%emt 0:01:32]} 30. c3 {[%emt 0:01:41]} Bc8 {[%emt 0:02:50]} 31. Nf5 {[%emt 0:01:32]} Nf4 {[%emt 0:04:11]} 32. Bxc5 {[%emt 0:01:46]} Bxf5 {[%emt 0:00:40]} 33. exf5 {[%emt 0:00:16]} Re8 {[%emt 0:01:34]} 34. Bxb6+ {[%emt 0:01:13]} Kxb6 {[%emt 0:00:22]} 35. Rd6+ {[%emt 0:00:16]} Kb7 {[%emt 0:01:35]} 36. Rxh6 {[%emt 0:06:18]} e4 {[%emt 0:00:10]} 37. fxe4 {[%emt 0:00:19]} Rxe4 {[%emt 0:00:14]} 38. Kd2 {[%emt 0:00:19]} Re7 {[%emt 0:02:18]} 39. Rh8 {[%emt 0:01:31]} Rd7+ {[%emt 0:00:11]} 40. Kc2 {[%emt 0:00:08]} Re7 {[%emt 0:00:07]} 41. Rd8 {[%emt 0:02:27]} Re1 {[%emt 0:01:20]} 42. Rd1 {[%emt 0:00:20]} Re3 {[%emt 0:01:02]} 43. h6 {[%emt 0:00:59]} Re8 {[%emt 0:00:36]} 44. h7 {[%emt 0:00:07]} Rh8 {[%emt 0:00:15]} 45. Rd7+ {[%emt 0:00:08]} Kc6 {[%emt 0:01:20]} 46. Rxf7 {[%emt 0:00:08]} Kd6 {[%emt 0:00:38]} 47. a4 {[%emt 0:01:17]} bxa4 {[%emt 0:00:26]} 48. Bxa6 {[%emt 0:00:20]} Nd5 {[%emt 0:00:38]} 49. Kd2 {[%emt 0:00:53]} Kc5 {[%emt 0:00:23]} 50. Bd3 {[%emt 0:00:35]} Nf4 {[%emt 0:00:48]} 51. Kc2 {[%emt 0:01:39]} Rd8 {[%emt 0:00:52]} 52. Rd7 {[%emt 0:00:30]} Rxd7 {[%emt 0:00:39]} 53. h8=Q {[%emt 0:00:06]} Rxd3 {[%emt 0:00:16]} 54. Qc8+ {[%emt 0:00:22]} Kb6 {[%emt 0:00:18]} 55. Qb8+ {[%emt 0:00:13]} Kc5 {[%emt 0:00:34]} 56. Qxf4 {[%emt 0:00:18]} Rxc3+ {[%emt 0:00:59]} 57. Kxc3 {[%emt 0:00:24]} gxf4 {[%emt 0:00:13]} 58. Kd3 {[%emt 0:00:11]} Kd5 {[%emt 0:00:20]} 59. Ke2 {[%emt 0:00:12]} Ke4 {[%emt 0:01:12]} 60. f6 {[%emt 0:00:12]} 1-0

[Event "II Duchamp Open 2018-U2200"]
[Site "Rio de Janeiro"]
[Date "2018.11.17"]
[Round "2"]
[White "Bomfim, Carlos B Campos Roc"]
[Black "Rios Fo., Hilton Carlos Da Si"]
[Result "0-1"]
[ECO "A05"]
[WhiteElo "1920"]
[BlackElo "2138"]
[Annotator "NA"]
[PlyCount "62"]
[EventDate "2018.11.14"]
[EventType "swiss"]
[EventCountry "BRA"]
[SourceTitle "playchess.com"]
[Source "ChessBase"]
[SourceQuality "1"]
[TimeControl "5400+30"]

1. Nf3 {[%emt 0:29:33]} Nf6 {[%emt 0:30:25]} 2. c4 {[%emt 0:00:18]} g6 {[%emt 0:00:15]} 3. g3 {[%emt 0:00:33]} Bg7 {[%emt 0:00:07]} 4. Bg2 {[%emt 0:00:16]} O-O {[%emt 0:00:41]} 5. Nc3 {[%emt 0:00:29]} d5 {[%emt 0:00:07]} 6. cxd5 {[%emt 0:02:09]} Nxd5 {[%emt 0:00:02]} 7. O-O {[%emt 0:00:29]} e5 {[%emt 0:02:10]} 8. Qb3 {[%emt 0:03:38]} Ne7 {[%emt 0:00:16]} 9. d3 {[%emt 0:01:08]} Nbc6 {[%emt 0:00:02]} 10. Bg5 {[%emt 0:03:22]} h6 {[%emt 0:00:13]} 11. Bd2 {[%emt 0:04:18]} Rb8 {[%emt 0:00:27]} 12. Rac1 {[%emt 0:00:54]} Bg4 {[%emt 0:09:59]} 13. Qa4 {[%emt 0:05:09]} Nd4 {[%emt 0:11:32]} 14. Qxa7 {[%emt 0:05:03]} Bxf3 {[%emt 0:21:28]} 15. exf3 {[%emt 0:00:35]} b5 {[%emt 0:00:09]} 16. Rfe1 {[%emt 0:08:55]} Rb6 {[%emt 0:03:59]} 17. Ne4 {[%emt 0:03:21]} Nec6 {[%emt 0:01:03]} 18. Qa3 {[%emt 0:00:42]} Re8 {[%emt 0:00:13]} 19. b4 {[%emt 0:04:11]} Qa8 {[%emt 0:01:00]} 20. Qb2 {[%emt 0:03:17]} Ra6 {[%emt 0:00:23]} 21. Ra1 {[%emt 0:01:02]} Qd8 {[%emt 0:00:35]} 22. Nc5 {[%emt 0:00:42]} Ra7 {[%emt 0:00:08]} 23. f4 {[%emt 0:00:58]} exf4 {[%emt 0:00:37]} 24. Rxe8+ {[%emt 0:00:55]} Qxe8 {[%emt 0:00:02]} 25. Kh1 {[%emt 0:05:33]} f3 {[%emt 0:00:27]} 26. Bf1 {[%emt 0:06:37]} Ne2 {[%emt 0:00:12]} 27. Qb1 {[%emt 0:01:02]} Bxa1 {[%emt 0:00:03]} 28. Qxa1 {[%emt 0:00:22]} Qe5 {[%emt 0:00:02]} 29. Qb1 {[%emt 0:01:02]} Qd5 {[%emt 0:02:13]} 30. a3 {[%emt 0:03:08]} Rxa3 {[%emt 0:00:48]} 31. Ne4 {[%emt 0:00:10]} Qd4 {[%emt 0:01:03]} 0-1

[Event "II Duchamp Open 2018-U2200"]
[Site "Rio de Janeiro"]
[Date "2018.11.18"]
[Round "3"]
[White "Peixoto, Rudson Marinho"]
[Black "Nascimento, Pedro Henrique Alve"]
[Result "0-1"]
[ECO "D30"]
[WhiteElo "2007"]
[BlackElo "2007"]
[Annotator "NA RC"]
[PlyCount "82"]
[EventDate "2018.11.14"]
[EventType "swiss"]
[EventCountry "BRA"]
[SourceTitle "playchess.com"]
[Source "ChessBase"]
[SourceQuality "1"]
[TimeControl "5400+30"]

1. d4 {[%emt 0:34:38]} d5 {[%emt 0:35:32]} 2. c4 {[%emt 0:00:11]} e6 {[%emt 0:00:10]} 3. e3 {[%emt 0:00:07]} Nf6 {[%emt 0:00:44]} 4. Nf3 {[%emt 0:00:19]} Be7 {[%emt 0:01:36]} 5. Bd3 {[%emt 0:00:08]} O-O {[%emt 0:00:23]} 6. O-O {[%emt 0:00:21]} dxc4 {[%emt 0:01:35]} 7. Bxc4 {[%emt 0:00:10]} b6 {[%emt 0:00:08]} 8. Nc3 {[%emt 0:00:35]} Bb7 {[%emt 0:00:11]} 9. Re1 {[%emt 0:00:29]} c5 {[%emt 0:00:35]} 10. e4 {[%emt 0:04:08]} cxd4 {[%emt 0:01:06]} 11. Qxd4 {[%emt 0:02:21]} Nc6 {[%emt 0:00:24]} 12. Qxd8 {[%emt 0:00:21]} Rfxd8 {[%emt 0:00:21]} 13. Bg5 {[%emt 0:00:12]} h6 {[%emt 0:00:25]} 14. Bh4 {[%emt 0:00:13]} g5 {[%emt 0:00:58]} 15. Bg3 {[%emt 0:00:10]} Nh5 {[%emt 0:00:12]} 16. Rad1 {[%emt 0:00:55]} Nxg3 {[%emt 0:00:13]} 17. hxg3 {[%emt 0:00:10]} Bb4 {[%emt 0:01:02]} 18. g4 {[%emt 0:01:32]} Bxc3 {[%emt 0:01:53]} 19. bxc3 {[%emt 0:00:11]} Kf8 {[%emt 0:01:32]} 20. Nd4 {[%emt 0:00:31]} Ne5 {[%emt 0:01:18]} 21. Bb3 {[%emt 0:00:26]} Rac8 {[%emt 0:03:51]} 22. Bxe6 {[%emt 0:01:19]} Rxc3 {[%emt 0:02:03]} 23. Bf5 {[%emt 0:01:55]} Ke7 {[%emt 0:00:33]} 24. Nb5 {[%emt 0:00:41]} Rxd1 {[%emt 0:01:28]} 25. Rxd1 {[%emt 0:00:11]} Rc2 {[%emt 0:00:29]} 26. Nxa7 {[%emt 0:02:00]} Rxa2 {[%emt 0:00:21]} 27. Nc8+ {[%emt 0:00:52]} Bxc8 {[%emt 0:00:38]} 28. Bxc8 {[%emt 0:00:08]} Rb2 {[%emt 0:01:02]} 29. Rd5 {[%emt 0:00:43]} f6 {[%emt 0:00:25]} 30. f3 {[%emt 0:00:39]} b5 {[%emt 0:00:20]} 31. Ba6 {[%emt 0:00:55]} b4 {[%emt 0:00:24]} 32. Rb5 {[%emt 0:01:14]} Kd6 {[%emt 0:02:52]} 33. Bb7 {[%emt 0:00:33]} Kc7 {[%emt 0:03:04]} 34. Bd5 {[%emt 0:00:28]} Nd3 {[%emt 0:00:19]} 35. g3 {[%emt 0:04:11]} Ne5 {[%emt 0:00:25]} 36. f4 {[%emt 0:00:56]} gxf4 {[%emt 0:00:38]} 37. gxf4 {[%emt 0:00:15]} Nxg4 {[%emt 0:00:19]} 38. Rb7+ {[%emt 0:00:13]} Kd6 {[%emt 0:00:22]} 39. Rg7 {[%emt 0:01:26]} Rb1+ {[%emt 0:00:11]} 40. Kg2 {[%emt 0:00:52]} Ne3+ {[%emt 0:00:36]} 41. Kf3 {[%emt 0:00:22]} Nxd5 {[%emt 0:00:22]} 0-1